[Event "13th Poti Nana Aleksandria Cup"]
[Site "Poti"]
[Date "2018.07.15"]
[Round "4"]
[White "Mustafayev, Farid"]
[Black "Nigmatov, Ortik"]
[Result "1/2-1/2"]
[ECO "B22"]
[WhiteElo "2068"]
[BlackElo "2461"]
[Annotator "ChessBase"]
[PlyCount "115"]
[EventDate "2018.07.13"]
[EventType "swiss"]
[EventCountry "GEO"]
[SourceTitle "playchess.com"]
[Source "ChessBase"]
[SourceQuality "1"]
[TimeControl "40/5400+30:1800+30"]

1. e4 {[%emt 0:00:00]} c5 {[%emt 0:05:33]} 2. c3 {[%emt 0:00:00]} d5 {[%emt 0:00:44]} 3. exd5 {[%emt 0:00:00]} Qxd5 {[%emt 0:00:01]} 4. d4 {[%emt 0:00:00]} Nf6 {[%emt 0:00:33]} 5. Nf3 {[%emt 0:00:02]} Nc6 {[%emt 0:00:11]} 6. Be2 {[%emt 0:00:25]} e6 {[%emt 0:00:18]} 7. O-O {[%emt 0:00:17]} Be7 {[%emt 0:00:04]} 8. c4 {[%emt 0:00:40]} Qd7 {[%emt 0:00:53]} 9. dxc5 {[%emt 0:00:57]} Bxc5 {[%emt 0:00:38]} 10. Nc3 {[%emt 0:00:51]} h6 {[%emt 0:03:43]} 11. a3 {[%emt 0:00:41]} a5 {[%emt 0:18:05]} 12. Qc2 {[%emt 0:13:01]} O-O {[%emt 0:00:36]} 13. b3 {[%emt 0:02:15]} e5 {[%emt 0:06:46]} 14. Rd1 {[%emt 0:04:20]} Qf5 {[%emt 0:00:29]} 15. Bd3 {[%emt 0:01:49]} Qh5 {[%emt 0:01:54]} 16. Ne4 {[%emt 0:04:05]} Nxe4 {[%emt 0:08:56]} 17. Bxe4 {[%emt 0:02:40]} Ra6 {[%emt 0:09:39]} 18. Bb2 {[%emt 0:05:27]} Re8 {[%emt 0:09:45]} 19. Rd5 {[%emt 0:10:55]} Bf8 {[%emt 0:02:33]} 20. Re1 {[%emt 0:00:56]} a4 {[%emt 0:15:33]} 21. Nxe5 {[%emt 0:13:39]} axb3 {[%emt 0:00:32]} 22. Bh7+ {[%emt 0:01:28]} Kh8 {[%emt 0:00:13]} 23. Qb1 {[%emt 0:00:34]} Nxe5 {[%emt 0:01:31]} 24. Rexe5 {[%emt 0:03:03]} f5 {[%emt 0:05:48]} 25. Bxf5 {[%emt 0:01:13]} Rxe5 {[%emt 0:04:19]} 26. Rxe5 {[%emt 0:00:28]} Bxf5 {[%emt 0:01:03]} 27. Rxf5 {[%emt 0:00:07]} Qe8 {[%emt 0:00:08]} 28. Rb5 {[%emt 0:07:47]} Bxa3 {[%emt 0:01:44]} 29. Rxb3 {[%emt 0:02:54]} Bxb2 {[%emt 0:00:11]} 30. Rxb2 {[%emt 0:00:05]} Re6 {[%emt 0:00:10]} 31. Kf1 {[%emt 0:00:12]} Qh5 {[%emt 0:01:56]} 32. Rd2 {[%emt 0:00:58]} Re8 {[%emt 0:00:33]} 33. Kg1 {[%emt 0:04:56]} Qc5 {[%emt 0:00:17]} 34. Qf1 {[%emt 0:00:36]} Rc8 {[%emt 0:00:27]} 35. Rd7 {[%emt 0:01:51]} Qxc4 {[%emt 0:00:20]} 36. Rxb7 {[%emt 0:00:07]} Qxf1+ {[%emt 0:00:22]} 37. Kxf1 {[%emt 0:00:04]} Rc2 {[%emt 0:00:07]} 38. g3 {[%emt 0:00:39]} Kg8 {[%emt 0:00:48]} 39. Kg2 {[%emt 0:00:24]} Ra2 {[%emt 0:00:20]} 40. g4 {[%emt 0:00:00]} Ra1 {[%emt 0:00:00]} 41. f3 {[%emt 0:01:15]} Kh7 {[%emt 0:07:09]} 42. h4 {[%emt 0:00:10]} Kg6 {[%emt 0:02:55]} 43. Kg3 {[%emt 0:00:05]} Ra6 {[%emt 0:00:26]} 44. h5+ {[%emt 0:00:39]} Kf6 {[%emt 0:00:13]} 45. f4 {[%emt 0:00:14]} Ra1 {[%emt 0:01:25]} 46. Rb6+ {[%emt 0:00:23]} Kf7 {[%emt 0:00:05]} 47. Rb3 {[%emt 0:00:05]} Rf1 {[%emt 0:00:45]} 48. Rf3 {[%emt 0:00:21]} Rg1+ {[%emt 0:00:12]} 49. Kh4 {[%emt 0:00:40]} Rh1+ {[%emt 0:00:06]} 50. Rh3 {[%emt 0:00:04]} Rg1 {[%emt 0:00:34]} 51. g5 {[%emt 0:00:36]} Ra1 {[%emt 0:06:51]} 52. Rb3 {[%emt 0:01:29]} hxg5+ {[%emt 0:00:52]} 53. Kxg5 {[%emt 0:01:08]} Ra7 {[%emt 0:00:05]} 54. f5 {[%emt 0:00:24]} Rc7 {[%emt 0:00:12]} 55. Rb4 {[%emt 0:00:43]} Ra7 {[%emt 0:00:45]} 56. Rb5 {[%emt 0:00:15]} Rc7 {[%emt 0:00:11]} 57. Kf4 {[%emt 0:00:07]} Rc1 {[%emt 0:00:47]} 58. Ke4 1/2-1/2

[Event "13th Poti Nana Aleksandria Cup"]
[Site "Poti"]
[Date "2018.07.15"]
[Round "4"]
[White "Avetisyan, Mariam"]
[Black "Pshmahov, Osman"]
[Result "1/2-1/2"]
[ECO "B03"]
[WhiteElo "2051"]
[BlackElo "2136"]
[Annotator "NA"]
[PlyCount "91"]
[EventDate "2018.07.13"]
[EventType "swiss"]
[EventCountry "GEO"]
[SourceTitle "playchess.com"]
[Source "ChessBase"]
[SourceQuality "1"]
[TimeControl "40/5400+30:1800+30"]

1. e4 {[%emt 0:00:02]} Nf6 {[%emt 0:00:18]} 2. e5 {[%emt 0:00:42]} Nd5 {[%emt 0:00:06]} 3. d4 {[%emt 0:00:31]} d6 {[%emt 0:00:04]} 4. c4 {[%emt 0:00:05]} Nb6 {[%emt 0:00:03]} 5. exd6 {[%emt 0:00:06]} exd6 {[%emt 0:00:05]} 6. Nf3 {[%emt 0:12:09]} Be7 {[%emt 0:00:07]} 7. h3 {[%emt 0:01:54]} Bf5 {[%emt 0:00:16]} 8. Bd3 {[%emt 0:00:56]} Qd7 {[%emt 0:00:34]} 9. O-O {[%emt 0:08:52]} O-O {[%emt 0:02:04]} 10. Re1 {[%emt 0:03:14]} Bf6 {[%emt 0:03:38]} 11. Qc2 {[%emt 0:12:47]} Bxd3 {[%emt 0:05:01]} 12. Qxd3 {[%emt 0:00:04]} Nc6 {[%emt 0:00:12]} 13. Bg5 {[%emt 0:14:56]} Nb4 {[%emt 0:14:44]} 14. Qc3 {[%emt 0:01:56]} Bxg5 {[%emt 0:01:13]} 15. Qxb4 {[%emt 0:02:39]} Be7 {[%emt 0:01:42]} 16. Nc3 {[%emt 0:02:21]} Rfe8 {[%emt 0:02:15]} 17. Rad1 {[%emt 0:11:02]} Bf8 {[%emt 0:08:27]} 18. b3 {[%emt 0:05:32]} c6 {[%emt 0:05:36]} 19. a4 {[%emt 0:00:47]} a5 {[%emt 0:02:48]} 20. Qa3 {[%emt 0:01:52]} Qf5 {[%emt 0:00:43]} 21. Qc1 {[%emt 0:02:06]} d5 {[%emt 0:01:03]} 22. c5 {[%emt 0:01:14]} Nd7 {[%emt 0:00:06]} 23. Ne2 {[%emt 0:02:26]} g6 {[%emt 0:01:34]} 24. Ng3 {[%emt 0:01:24]} Qf6 {[%emt 0:00:05]} 25. Qd2 {[%emt 0:06:29]} Rxe1+ {[%emt 0:06:52]} 26. Qxe1 {[%emt 0:00:50]} Bg7 {[%emt 0:02:09]} 27. b4 {[%emt 0:00:23]} Nf8 {[%emt 0:01:13]} 28. bxa5 {[%emt 0:02:04]} Qd8 {[%emt 0:06:15]} 29. Rb1 {[%emt 0:00:05]} Qxa5 {[%emt 0:00:12]} 30. Qe7 {[%emt 0:02:19]} Ra7 {[%emt 0:06:20]} 31. Rb6 {[%emt 0:02:27]} Qc3 {[%emt 0:00:24]} 32. Rxb7 {[%emt 0:01:06]} Rxb7 {[%emt 0:00:44]} 33. Qxb7 {[%emt 0:00:02]} Bxd4 {[%emt 0:00:54]} 34. Nxd4 {[%emt 0:00:03]} Qxd4 {[%emt 0:00:03]} 35. Qxc6 {[%emt 0:00:24]} Ne6 {[%emt 0:00:23]} 36. a5 {[%emt 0:01:30]} Nxc5 {[%emt 0:02:23]} 37. Qe8+ {[%emt 0:00:40]} Kg7 {[%emt 0:00:05]} 38. Qd8 {[%emt 0:00:22]} Ne4 {[%emt 0:12:24]} 39. Nxe4 {[%emt 0:00:17]} Qxe4 {[%emt 0:00:17]} 40. a6 {[%emt 0:00:39]} Qe1+ {[%emt 0:01:06]} 41. Kh2 {[%emt 0:00:08]} Qe5+ {[%emt 0:01:05]} 42. g3 {[%emt 0:03:20]} Qd4 {[%emt 0:05:21]} 43. Kg2 {[%emt 0:01:43]} Qe4+ {[%emt 0:00:07]} 44. Kh2 {[%emt 0:00:22]} Qd4 {[%emt 0:00:50]} 45. Kg2 {[%emt 0:00:05]} Qe4+ {[%emt 0:02:38]} 46. Kh2 {[%emt 0:00:03]} 1/2-1/2

[Event "13th Poti Nana Aleksandria Cup"]
[Site "Poti"]
[Date "2018.07.15"]
[Round "4"]
[White "Mnatsakanian, Arsen"]
[Black "Danielyan, Vahe"]
[Result "1-0"]
[ECO "C26"]
[WhiteElo "2047"]
[BlackElo "2317"]
[Annotator "NA"]
[PlyCount "71"]
[EventDate "2018.07.13"]
[EventType "swiss"]
[EventCountry "GEO"]
[SourceTitle "playchess.com"]
[Source "ChessBase"]
[SourceQuality "1"]
[TimeControl "40/5400+30:1800+30"]

1. e4 e5 2. Nc3 Nf6 3. Bc4 Bc5 4. d3 O-O 5. Nf3 d6 6. h3 a6 7. Bg5 h6 8. Bh4 c6 9. Qd2 Nbd7 {[%emt 0:01:41]} 10. g4 {[%emt 0:04:54]} d5 {[%emt 0:16:23]} 11. exd5 {[%emt 0:02:45]} cxd5 {[%emt 0:02:09]} 12. Bxd5 {[%emt 0:03:58]} g5 {[%emt 0:02:21]} 13. Bxg5 {[%emt 0:28:34]} hxg5 {[%emt 0:02:35]} 14. Qxg5+ {[%emt 0:00:03]} Kh8 {[%emt 0:00:22]} 15. Qh6+ {[%emt 0:00:27]} Nh7 {[%emt 0:01:17]} 16. Be4 {[%emt 0:01:27]} f5 17. Bxf5 {[%emt 0:00:10]} Ndf6 {[%emt 0:06:31]} 18. Nh4 {[%emt 0:00:58]} Bxf5 {[%emt 0:03:52]} 19. gxf5 {[%emt 0:01:20]} Qb6 {[%emt 0:00:30]} 20. Ng6+ {[%emt 0:06:07]} Kg8 {[%emt 0:00:00]} 21. Ne7+ {[%emt 0:00:28]} Kh8 {[%emt 0:03:15]} 22. Ng6+ {[%emt 0:01:57]} Kg8 {[%emt 0:03:01]} 23. Nxf8 {[%emt 0:08:36]} Bxf8 {[%emt 0:00:31]} 24. Qg6+ {[%emt 0:02:25]} Kh8 {[%emt 0:00:26]} 25. O-O-O {[%emt 0:01:43]} Rc8 {[%emt 0:03:11]} 26. Ne4 {[%emt 0:04:20]} Qc7 {[%emt 0:00:57]} 27. c3 {[%emt 0:00:55]} Ba3 {[%emt 0:00:11]} 28. Kb1 {[%emt 0:04:42]} Nxe4 {[%emt 0:00:30]} 29. dxe4 {[%emt 0:00:30]} Bxb2 {[%emt 0:00:30]} 30. Rhg1 {[%emt 0:00:30]} Bxc3 {[%emt 0:00:30]} 31. Rc1 {[%emt 0:00:30]} Qe7 {[%emt 0:03:58]} 32. Rxc3 {[%emt 0:04:04]} Qb4+ {[%emt 0:00:30]} 33. Rb3 {[%emt 0:00:30]} Qxe4+ {[%emt 0:00:30]} 34. Ka1 {[%emt 0:00:30]} Qd4+ {[%emt 0:00:30]} 35. Rb2 {[%emt 0:00:30]} e4 {[%emt 0:00:30]} 36. f6 {[%emt 0:01:28]} 1-0

[Event "13th Poti Nana Aleksandria Cup"]
[Site "Poti"]
[Date "2018.07.15"]
[Round "4"]
[White "Shanya Mishra"]
[Black "Martynyuk, Elizaveta"]
[Result "1/2-1/2"]
[ECO "D12"]
[WhiteElo "1980"]
[BlackElo "2182"]
[Annotator "NA"]
[PlyCount "224"]
[EventDate "2018.07.13"]
[EventType "swiss"]
[EventCountry "GEO"]
[SourceTitle "playchess.com"]
[Source "ChessBase"]
[SourceQuality "1"]
[TimeControl "40/5400+30:1800+30"]

1. d4 d5 {[%emt 0:01:06]} 2. c4 {[%emt 0:01:23]} c6 {[%emt 0:00:01]} 3. Nf3 {[%emt 0:00:21]} Nf6 {[%emt 0:00:02]} 4. e3 {[%emt 0:00:40]} Bf5 {[%emt 0:00:04]} 5. Nc3 {[%emt 0:00:34]} e6 {[%emt 0:00:08]} 6. Nh4 {[%emt 0:00:58]} Be4 {[%emt 0:00:06]} 7. f3 {[%emt 0:05:36]} Bg6 {[%emt 0:00:05]} 8. g4 {[%emt 0:18:42]} Be7 {[%emt 0:03:01]} 9. Bg2 {[%emt 0:07:20]} Ne4 {[%emt 0:02:51]} 10. Nxg6 {[%emt 0:01:40]} Nxc3 {[%emt 0:00:08]} 11. bxc3 {[%emt 0:04:24]} hxg6 {[%emt 0:00:10]} 12. O-O {[%emt 0:02:39]} Nd7 {[%emt 0:02:38]} 13. cxd5 {[%emt 0:05:57]} cxd5 {[%emt 0:03:07]} 14. h3 {[%emt 0:00:23]} Qc7 {[%emt 0:04:19]} 15. Rb1 {[%emt 0:02:50]} Nb6 {[%emt 0:00:41]} 16. Bd2 {[%emt 0:02:48]} Nc4 {[%emt 0:00:32]} 17. Qe2 {[%emt 0:00:22]} b6 {[%emt 0:06:36]} 18. Be1 {[%emt 0:00:55]} Bg5 {[%emt 0:01:16]} 19. f4 {[%emt 0:01:57]} Bh4 {[%emt 0:02:18]} 20. e4 {[%emt 0:04:12]} Bxe1 {[%emt 0:00:17]} 21. Rbxe1 {[%emt 0:00:05]} dxe4 {[%emt 0:00:29]} 22. Qxe4 {[%emt 0:03:10]} O-O {[%emt 0:01:11]} 23. Qe2 {[%emt 0:06:02]} Rac8 {[%emt 0:00:45]} 24. f5 {[%emt 0:00:54]} gxf5 {[%emt 0:01:13]} 25. gxf5 {[%emt 0:00:08]} exf5 {[%emt 0:00:18]} 26. Rxf5 {[%emt 0:01:30]} Nd6 {[%emt 0:01:55]} 27. Rf3 {[%emt 0:04:34]} Rfe8 {[%emt 0:01:44]} 28. Qf1 {[%emt 0:00:10]} Rxe1 {[%emt 0:01:23]} 29. Qxe1 {[%emt 0:00:05]} Nb5 {[%emt 0:02:31]} 30. h4 {[%emt 0:00:48]} Nxc3 {[%emt 0:02:25]} 31. Bh3 {[%emt 0:01:39]} Qc6 {[%emt 0:00:38]} 32. Rg3 {[%emt 0:08:14]} Rc7 {[%emt 0:05:47]} 33. Re3 {[%emt 0:05:42]} Qf6 {[%emt 0:05:34]} 34. Re8+ {[%emt 0:03:56]} Kh7 {[%emt 0:00:06]} 35. Re5 {[%emt 0:00:03]} g6 {[%emt 0:01:21]} 36. h5 {[%emt 0:00:29]} Nxa2 {[%emt 0:01:10]} 37. Qg3 {[%emt 0:01:43]} Rc3 {[%emt 0:01:36]} 38. Qg4 {[%emt 0:04:42]} Rc1+ {[%emt 0:01:08]} 39. Kh2 {[%emt 0:00:33]} Qf2+ {[%emt 0:00:09]} 40. Bg2 {[%emt 0:00:00]} Qg1+ {[%emt 0:00:00]} 41. Kh3 {[%emt 0:00:43]} Rc3+ {[%emt 0:00:33]} 42. Bf3 {[%emt 0:00:20]} Qxg4+ {[%emt 0:04:03]} 43. Kxg4 {[%emt 0:00:06]} Nb4 {[%emt 0:02:47]} 44. hxg6+ {[%emt 0:00:10]} Kxg6 {[%emt 0:00:19]} 45. Be4+ {[%emt 0:00:11]} Kf6 {[%emt 0:00:58]} 46. Rf5+ {[%emt 0:00:39]} Ke7 {[%emt 0:00:15]} 47. Re5+ {[%emt 0:00:09]} Kd6 {[%emt 0:00:24]} 48. Rf5 {[%emt 0:00:21]} Rc4 {[%emt 0:00:25]} 49. Rxf7 {[%emt 0:00:23]} Rxd4 {[%emt 0:00:11]} 50. Kf5 {[%emt 0:00:08]} a5 {[%emt 0:00:16]} 51. Rb7 {[%emt 0:00:12]} Kc5 {[%emt 0:00:14]} 52. Ke5 {[%emt 0:00:11]} Nd3+ {[%emt 0:01:49]} 53. Kf5 {[%emt 0:00:26]} Kb5 {[%emt 0:00:26]} 54. Rc7 {[%emt 0:00:14]} Nc5 {[%emt 0:00:17]} 55. Bc6+ {[%emt 0:00:16]} Kc4 {[%emt 0:00:44]} 56. Bg2 {[%emt 0:00:43]} Rd6 {[%emt 0:00:33]} 57. Bf1+ {[%emt 0:00:17]} Kd4 {[%emt 0:00:40]} 58. Rh7 {[%emt 0:00:15]} Rd5+ {[%emt 0:01:41]} 59. Kg4 {[%emt 0:00:30]} a4 {[%emt 0:00:11]} 60. Rh6 {[%emt 0:00:11]} a3 {[%emt 0:00:39]} 61. Rh3 {[%emt 0:00:55]} Ne4 {[%emt 0:03:05]} 62. Rxa3 {[%emt 0:02:46]} Nd2 {[%emt 0:00:17]} 63. Rd3+ {[%emt 0:01:22]} Kc5 {[%emt 0:00:29]} 64. Rxd5+ {[%emt 0:00:06]} Kxd5 {[%emt 0:00:08]} 65. Ba6 {[%emt 0:00:13]} Ke4 {[%emt 0:00:33]} 66. Kh5 {[%emt 0:00:40]} Nb3 {[%emt 0:00:29]} 67. Kg6 {[%emt 0:00:10]} Nc5 {[%emt 0:00:12]} 68. Bb5 {[%emt 0:00:11]} Ke5 {[%emt 0:00:22]} 69. Kh7 {[%emt 0:00:16]} Ne6 {[%emt 0:00:13]} 70. Kh8 {[%emt 0:00:29]} Nd4 {[%emt 0:00:17]} 71. Ba6 {[%emt 0:00:10]} Kd6 {[%emt 0:00:20]} 72. Bf1 {[%emt 0:00:55]} Kc5 {[%emt 0:00:12]} 73. Bd3 {[%emt 0:00:15]} Nc6 {[%emt 0:00:24]} 74. Bf1 {[%emt 0:00:30]} Ne5 {[%emt 0:00:29]} 75. Ba6 {[%emt 0:00:08]} Nc4 {[%emt 0:00:10]} 76. Kg7 {[%emt 0:00:09]} Kb4 {[%emt 0:00:20]} 77. Bb7 {[%emt 0:00:45]} Nd6 {[%emt 0:00:14]} 78. Ba6 {[%emt 0:00:10]} Nb5 {[%emt 0:00:17]} 79. Bb7 {[%emt 0:00:10]} Kc4 {[%emt 0:00:18]} 80. Bg2 {[%emt 0:00:24]} Kc5 {[%emt 0:01:03]} 81. Bf1 {[%emt 0:00:09]} Nd4 {[%emt 0:00:27]} 82. Kh8 {[%emt 0:00:42]} Kd5 {[%emt 0:00:10]} 83. Bd3 {[%emt 0:00:13]} Nb3 {[%emt 0:00:32]} 84. Bf1 {[%emt 0:00:28]} Nd2 {[%emt 0:00:13]} 85. Ba6 {[%emt 0:00:07]} Kc5 {[%emt 0:00:38]} 86. Kg7 {[%emt 0:00:12]} Ne4 {[%emt 0:00:07]} 87. Kh8 {[%emt 0:00:27]} Nd6 {[%emt 0:00:09]} 88. Kg7 {[%emt 0:00:31]} Kb4 {[%emt 0:00:30]} 89. Kh8 {[%emt 0:00:09]} Nb5 {[%emt 0:00:18]} 90. Bb7 {[%emt 0:00:09]} Ka5 {[%emt 0:00:42]} 91. Bg2 {[%emt 0:00:31]} Ka4 {[%emt 0:00:10]} 92. Bf1 {[%emt 0:00:24]} Ka5 {[%emt 0:00:15]} 93. Kg7 {[%emt 0:00:17]} Ka6 {[%emt 0:00:06]} 94. Kh8 {[%emt 0:00:07]} Ka5 {[%emt 0:00:05]} 95. Kg7 {[%emt 0:00:09]} Nc7 {[%emt 0:00:19]} 96. Kh8 {[%emt 0:00:13]} Ne8 {[%emt 0:00:14]} 97. Be2 {[%emt 0:00:08]} Nd6 {[%emt 0:00:11]} 98. Bf1 {[%emt 0:00:07]} Nf7+ {[%emt 0:00:12]} 99. Kg7 {[%emt 0:00:09]} Ng5 {[%emt 0:00:14]} 100. Kh8 {[%emt 0:00:17]} Nf3 {[%emt 0:00:11]} 101. Kg7 {[%emt 0:00:32]} Ng5 {[%emt 0:00:19]} 102. Kh8 {[%emt 0:00:10]} Nf7+ {[%emt 0:00:11]} 103. Kg7 {[%emt 0:00:10]} Ne5 {[%emt 0:00:06]} 104. Kh8 {[%emt 0:00:06]} Kb4 {[%emt 0:00:13]} 105. Ba6 {[%emt 0:00:08]} Nc6 {[%emt 0:00:15]} 106. Kg7 {[%emt 0:00:29]} Na7 {[%emt 0:00:09]} 107. Kh8 {[%emt 0:00:54]} Ka4 {[%emt 0:00:13]} 108. Kg7 {[%emt 0:00:11]} Ka5 {[%emt 0:00:15]} 109. Bf1 {[%emt 0:00:12]} Nc6 {[%emt 0:03:32]} 110. Kh8 {[%emt 0:01:14]} Nb8 {[%emt 0:00:17]} 111. Kg7 {[%emt 0:00:14]} Nd7 {[%emt 0:00:46]} 112. Kh8 {[%emt 0:00:08]} Nb8 {[%emt 0:00:00]} 1/2-1/2

[Event "13th Poti Nana Aleksandria Cup"]
[Site "Poti"]
[Date "2018.07.15"]
[Round "4"]
[White "Tihonov, Gennady"]
[Black "Arakelyan, Nare"]
[Result "0-1"]
[ECO "B51"]
[WhiteElo "1845"]
[BlackElo "1834"]
[Annotator "NA"]
[PlyCount "110"]
[EventDate "2018.07.13"]
[EventType "swiss"]
[EventCountry "GEO"]
[SourceTitle "playchess.com"]
[Source "ChessBase"]
[SourceQuality "1"]
[TimeControl "40/5400+30:1800+30"]

1. e4 {[%emt 0:00:00]} c5 {[%emt 0:00:00]} 2. Nf3 {[%emt 0:00:01]} d6 {[%emt 0:00:00]} 3. Bb5+ {[%emt 0:00:13]} Nc6 {[%emt 0:00:07]} 4. O-O {[%emt 0:00:24]} g6 {[%emt 0:02:36]} 5. c3 {[%emt 0:01:22]} Bg7 {[%emt 0:02:35]} 6. d4 {[%emt 0:00:08]} Bd7 {[%emt 0:04:52]} 7. Be3 {[%emt 0:05:40]} cxd4 {[%emt 0:02:31]} 8. cxd4 {[%emt 0:00:13]} Nf6 {[%emt 0:01:43]} 9. Nc3 {[%emt 0:00:19]} O-O {[%emt 0:01:24]} 10. h3 {[%emt 0:03:28]} a6 {[%emt 0:01:20]} 11. Bd3 {[%emt 0:00:40]} Nb4 {[%emt 0:03:37]} 12. Bb1 {[%emt 0:00:32]} Qa5 {[%emt 0:05:43]} 13. Qb3 {[%emt 0:05:05]} d5 14. e5 {[%emt 0:03:27]} Ne4 {[%emt 0:19:42]} 15. Bxe4 dxe4 {[%emt 0:00:10]} 16. Ng5 {[%emt 0:10:06]} b5 {[%emt 0:16:25]} 17. Ncxe4 {[%emt 0:04:47]} h6 {[%emt 0:02:13]} 18. Nxf7 {[%emt 0:02:58]} Rxf7 {[%emt 0:01:58]} 19. Bd2 {[%emt 0:00:14]} Qb6 {[%emt 0:01:43]} 20. Qxb4 {[%emt 0:01:19]} Bc6 {[%emt 0:02:45]} 21. Nc5 {[%emt 0:06:25]} Qd8 {[%emt 0:04:18]} 22. Rad1 {[%emt 0:04:44]} Qd5 {[%emt 0:01:06]} 23. f3 {[%emt 0:00:26]} a5 {[%emt 0:00:51]} 24. Qc3 {[%emt 0:01:18]} b4 {[%emt 0:00:25]} 25. Qe3 {[%emt 0:02:07]} Qxa2 {[%emt 0:01:50]} 26. b3 {[%emt 0:02:46]} Qc2 {[%emt 0:03:01]} 27. Ne6 {[%emt 0:04:21]} Bd5 {[%emt 0:01:20]} 28. Nc5 {[%emt 0:03:34]} Qf5 {[%emt 0:05:20]} 29. Ra1 {[%emt 0:01:50]} Qc8 {[%emt 0:01:22]} 30. Rfc1 {[%emt 0:00:32]} Qb8 {[%emt 0:05:53]} 31. Na4 {[%emt 0:07:49]} Qb7 {[%emt 0:01:03]} 32. Nc5 {[%emt 0:01:44]} Qb5 {[%emt 0:00:18]} 33. Ne4 {[%emt 0:01:17]} Qb7 {[%emt 0:03:46]} 34. Rc5 {[%emt 0:02:05]} a4 {[%emt 0:00:46]} 35. Rxa4 {[%emt 0:01:10]} Rxa4 {[%emt 0:00:12]} 36. bxa4 {[%emt 0:00:06]} b3 {[%emt 0:00:27]} 37. Rb5 {[%emt 0:00:24]} Qc6 {[%emt 0:00:53]} 38. Rb8+ {[%emt 0:06:31]} Kh7 {[%emt 0:00:20]} 39. a5 {[%emt 0:01:59]} Qc2 {[%emt 0:00:42]} 40. a6 {[%emt 0:00:00]} b2 {[%emt 0:00:00]} 41. Nc3 {[%emt 0:04:33]} e6 {[%emt 0:04:31]} 42. Kh2 {[%emt 0:01:27]} Ra7 {[%emt 0:06:21]} 43. Rb6 {[%emt 0:08:50]} Bc4 {[%emt 0:04:54]} 44. Rb8 {[%emt 0:05:37]} Bxa6 {[%emt 0:05:02]} 45. Ne4 {[%emt 0:02:07]} Bc8 {[%emt 0:06:36]} 46. Nf6+ {[%emt 0:11:45]} Bxf6 {[%emt 0:02:50]} 47. Qxh6+ {[%emt 0:00:07]} Kg8 {[%emt 0:00:04]} 48. exf6 {[%emt 0:00:39]} b1=Q {[%emt 0:00:29]} 49. Bb4 {[%emt 0:01:39]} Qc7+ {[%emt 0:01:02]} 50. f4 {[%emt 0:00:18]} Qxb8 {[%emt 0:01:17]} 51. Qf8+ {[%emt 0:00:25]} Kh7 {[%emt 0:00:31]} 52. Bd6 {[%emt 0:00:46]} Qa8 {[%emt 0:02:22]} 53. f7 {[%emt 0:02:35]} Qxg2+ {[%emt 0:03:07]} 54. Kxg2 {[%emt 0:00:02]} Ra2+ {[%emt 0:00:05]} 55. Kg3 {[%emt 0:00:24]} Qe1+ {[%emt 0:00:10]} 0-1

[Event "13th Poti Nana Aleksandria Cup"]
[Site "Poti"]
[Date "2018.07.15"]
[Round "4"]
[White "Bibilashvili, Lali"]
[Black "Mammadov, Sadig"]
[Result "1/2-1/2"]
[ECO "A16"]
[WhiteElo "1816"]
[BlackElo "2312"]
[Annotator "NA"]
[PlyCount "146"]
[EventDate "2018.07.13"]
[EventType "swiss"]
[EventCountry "GEO"]
[SourceTitle "playchess.com"]
[Source "ChessBase"]
[SourceQuality "1"]
[TimeControl "40/5400+30:1800+30"]

1. c4 {[%emt 0:06:12]} Nf6 {[%emt 0:00:00]} 2. Nc3 {[%emt 0:00:10]} g6 {[%emt 0:00:14]} 3. g3 {[%emt 0:00:04]} Bg7 {[%emt 0:00:03]} 4. Bg2 {[%emt 0:00:05]} O-O {[%emt 0:00:06]} 5. e3 {[%emt 0:00:01]} c5 {[%emt 0:00:18]} 6. Nge2 {[%emt 0:00:04]} Nc6 {[%emt 0:00:01]} 7. O-O {[%emt 0:00:13]} d6 {[%emt 0:00:02]} 8. d4 {[%emt 0:03:28]} cxd4 {[%emt 0:00:50]} 9. exd4 {[%emt 0:00:02]} Bf5 {[%emt 0:01:57]} 10. a3 {[%emt 0:01:03]} Qc8 {[%emt 0:02:34] E61: King's Indian: Early deviations for White, including Smyslov System} (10... Qd7 11. Re1 {½-½ (11) Smistik,M (2335)-Blahynka,M (2098) Czechia 2012}) 11. b4 $146 {[%emt 0:02:45]} ({Predecessor:} 11. Be3 Bh3 12. Nf4 Bxg2 13. Kxg2 Ng4 14. Nfd5 Nxe3+ 15. fxe3 e6 16. Nf6+ Bxf6 17. Rxf6 Ne7 18. Qd3 {½-½ (53) Czygan,D (1720)-Sieberg,R (2004) Dortmund 2006}) 11... Bh3 {[%emt 0:03:21]} 12. Bb2 {[%emt 0:06:20]} Bxg2 {[%emt 0:01:23]} 13. Kxg2 {[%emt 0:00:03]} Rd8 {[%emt 0:09:51]} 14. Rc1 {[%emt 0:06:07]} Qf5 15. Qc2 {[%emt 0:07:55]} Qxc2 {[%emt 0:08:36]} 16. Rxc2 {[%emt 0:00:02]} d5 {[%emt 0:00:14]} 17. b5 {[%emt 0:04:55]} Na5 {[%emt 0:00:20]} 18. c5 {[%emt 0:03:03]} e6 {[%emt 0:00:31]} 19. Bc1 {[%emt 0:05:08]} Rac8 {[%emt 0:03:00]} 20. Bf4 {[%emt 0:12:05]} Ne8 {[%emt 0:05:07]} 21. Na4 {[%emt 0:09:51]} Nc4 {[%emt 0:02:19]} 22. Ra2 {[%emt 0:12:05]} b6 {[%emt 0:05:55]} 23. Rc1 {[%emt 0:05:25]} e5 {[%emt 0:01:13]} 24. Bg5 {[%emt 0:01:24]} f6 {[%emt 0:02:50]} 25. Be3 {[%emt 0:00:13]} Nc7 {[%emt 0:00:55]} 26. Rb1 {[%emt 0:09:12]} Ne6 {[%emt 0:02:16]} 27. c6 {[%emt 0:02:52]} a6 {[%emt 0:02:08]} 28. bxa6 {[%emt 0:00:03]} Rxc6 {[%emt 0:00:00]} 29. Nac3 {[%emt 0:01:28]} Nc7 {[%emt 0:01:42]} 30. a7 {[%emt 0:00:14]} Kf7 {[%emt 0:20:06]} 31. a4 {[%emt 0:00:41]} Ra8 {[%emt 0:01:42]} 32. Nb5 {[%emt 0:00:12]} Nxb5 {[%emt 0:00:01]} 33. axb5 {[%emt 0:00:06]} Rc7 {[%emt 0:00:07]} 34. Rba1 {[%emt 0:00:21]} Bf8 {[%emt 0:00:37]} 35. Ra6 {[%emt 0:02:02]} Bb4 {[%emt 0:15:35]} 36. dxe5 {[%emt 0:01:05]} fxe5 {[%emt 0:00:06]} 37. Bxb6 {[%emt 0:00:04]} Rb7 {[%emt 0:03:55]} 38. Be3 {[%emt 0:01:03]} d4 {[%emt 0:02:03]} 39. Nxd4 {[%emt 0:00:51]} Nxe3+ {[%emt 0:02:03]} 40. fxe3 {[%emt 0:00:00]} exd4 {[%emt 0:00:00]} 41. exd4 {[%emt 0:00:18]} Bc3 {[%emt 0:02:25]} 42. R1a4 {[%emt 0:04:40]} Rxb5 {[%emt 0:02:09]} 43. Kf3 {[%emt 0:10:27]} Ke7 {[%emt 0:03:45]} 44. Rc4 {[%emt 0:04:43]} Ba5 {[%emt 0:01:00]} 45. Rcc6 {[%emt 0:00:05]} Bd8 {[%emt 0:04:41]} 46. h4 {[%emt 0:07:44]} Kd7 {[%emt 0:07:00]} 47. Rc2 {[%emt 0:05:21]} Rb7 {[%emt 0:11:39]} 48. Rca2 {[%emt 0:00:02]} Rb3+ {[%emt 0:00:13]} 49. Kg4 {[%emt 0:00:30]} Rb4 {[%emt 0:02:53]} 50. R2a4 {[%emt 0:00:05]} Rb5 {[%emt 0:00:57]} 51. Kf3 {[%emt 0:00:20]} Bc7 {[%emt 0:01:09]} 52. g4 {[%emt 0:00:30]} Bb6 {[%emt 0:00:29]} 53. Ke4 {[%emt 0:00:51]} Re8+ {[%emt 0:01:37]} 54. Kd3 {[%emt 0:00:13]} Ra8 {[%emt 0:00:09]} 55. Kc4 {[%emt 0:00:14]} Rb1 {[%emt 0:00:07]} 56. h5 {[%emt 0:00:13]} g5 {[%emt 0:00:25]} 57. Ra2 {[%emt 0:01:15]} Kc7 {[%emt 0:00:26]} 58. Rf2 {[%emt 0:00:23]} Kb7 {[%emt 0:00:17]} 59. Ra3 {[%emt 0:00:10]} Rc8+ {[%emt 0:01:05]} 60. Kd5 {[%emt 0:00:40]} Rd8+ {[%emt 0:00:11]} 61. Ke6 {[%emt 0:00:22]} Re1+ {[%emt 0:00:14]} 62. Kf7 {[%emt 0:00:15]} Rd7+ {[%emt 0:01:05]} 63. Kf8 {[%emt 0:00:36]} Rd8+ $2 {[%emt 0:02:01]} 64. Kf7 {[%emt 0:00:09]} Rd7+ {[%emt 0:01:11]} 65. Kf8 {[%emt 0:00:04]} {Lieber} Bxa7 $19 {[%emt 0:00:10]} 66. Rf7 {[%emt 0:01:44]} Rxf7+ {[%emt 0:00:01]} 67. Kxf7 {[%emt 0:00:04]} Bxd4 {[%emt 0:00:03]} 68. Ra5 {[%emt 0:00:24]} Be5 {[%emt 0:01:19]} 69. Kg8 {[%emt 0:00:15]} Kc6 {[%emt 0:00:06]} 70. Kxh7 {[%emt 0:00:14]} Kd6 {[%emt 0:00:14]} 71. Kg6 {[%emt 0:01:03]} Bf4 {[%emt 0:00:02]} 72. h6 {[%emt 0:01:11]} Re6+ {[%emt 0:01:39]} 73. Kh5 $11 {[%emt 0:00:40]} Re1 {[%emt 0:01:05]} 1/2-1/2